[Event "MCCT Chessable Masters 2022"]
[Site "Online"]
[Date "2022.05.16"]
[Round "7.4"]
[White "Ding, Liren"]
[Black "Tari, Aryan"]
[Result "1/2-1/2"]
[ECO "A22"]
[WhiteElo "2806"]
[BlackElo "2654"]
[Annotator "TA"]
[PlyCount "81"]
[EventDate "2022.05.19"]
[EventType "tourn"]
[EventCountry "NET"]
[SourceTitle "playchess.com"]
[Source "ChessBase"]
[SourceQuality "1"]
[TimeControl "900+10"]

{[%evp 9,81,70,73,72,75,80,75,75,67,81,92,84,84,75,89,29,76,75,82,73,102,97,168,159,155,167,274,271,273,281,265,202,192,203,206,195,206,199,250,225,266,274,280,219,250,226,266,110,106,106,109,111,107,102,101,99,107,37,43,35,39,44,52,49,58,55,58,-23,-15,-11,-9,-16,-8,-17]} 1. c4 {[%emt 0:00:00]} e5 {[%emt 0:00:00]} 2. Nc3 {[%emt 0:00:06][%cal Bb1c3,Bc3e4,Be4g3,Bg3e2,Be2f4][%mdl 32]} Nf6 {[%emt 0:00:02]} 3. Nf3 {[%emt 0:00:01]} e4 {[%emt 0:01:14]} 4. Ng5 {[%emt 0:00:04]} c6 {[%emt 0:00:00]} 5. Ngxe4 {[%emt 0:03:50]} Nxe4 {[%emt 0:00:03]} 6. Nxe4 {[%emt 0:00:00] A22: English Opening: 1...e5 2 Nc3 Nf6.} d5 {[%emt 0:00:01]} 7. cxd5 {[%emt 0:00:00]} cxd5 {[%emt 0:00:00]} 8. Ng3 {[%emt 0:00:01] White is better.} (8. Qa4+ $2 Bd7 9. Qd4 dxe4 10. Qxe4+ Be7 $19) 8... h5 {[%emt 0:00:00]} 9. e3 {[%emt 0:00:44]} h4 {[%emt 0:00:04] [#]} 10. Ne2 {[%emt 0:01:32]} Nc6 {[%emt 0:01:02] [#]} 11. d4 $5 $146 {[%emt 0:00:42][%mdl 8] An interesting novelty.} ({Predecessor:} 11. a3 Bd6 12. d4 Bg4 13. f3 Bh5 14. Nc3 Qb8 15. Qb3 Bxh2 16. Qxd5 Bg6 17. Bb5 {0-1 (78) Deshmukh,A (2190)-Vishnu,P (2437) Nashik 2022}) 11... Bf5 {[%emt 0:03:19] ...Nb4 is the strong threat.} 12. Bd2 {[%emt 0:00:27]} ({Better is} 12. Nc3 $16) 12... h3 {[%emt 0:01:24]} (12... Nb4 $11 {is superior.} 13. Bxb4 (13. Qa4+ b5 $17) 13... Bxb4+ 14. Nc3 Qa5) 13. Qb3 {[%emt 0:00:41]} Qd7 {[%emt 0:00:36]} 14. Nf4 {[%emt 0:00:43]} Bd6 {[%emt 0:01:22] Hoping for ...Bxf4.} 15. Nxh3 {[%emt 0:00:09]} ({Inferior is} 15. Nxd5 Be4 16. Bd3 (16. f3 $2 Bxd5 17. Qd3 Nb4 $19) 16... hxg2 17. Bxe4 gxh1=N 18. Bxh1 Rxh2 $17) 15... O-O {[%emt 0:00:39]} (15... Kf8 $16) 16. Bd3 $18 {[%emt 0:00:19]} ({Don't go for} 16. Qxd5 $2 Nb4 17. Bb5 Nxd5 $17) 16... Bxh3 {[%emt 0:01:10]} 17. gxh3 {[%emt 0:00:02]} Rac8 {[%emt 0:00:12]} (17... Ne7 {was necessary.} 18. Bf1 Rac8) 18. Qxd5 {[%emt 0:02:51] Black must now prevent Qh5.} Nb4 {[%emt 0:00:29]} 19. Bf5 {[%emt 0:00:02]} Qe7 {[%emt 0:02:50]} 20. Bxb4 {[%emt 0:01:34]} Bxb4+ {[%emt 0:00:00]} 21. Kf1 {[%emt 0:00:09]} Rcd8 {[%emt 0:00:26]} 22. Qf3 {[%emt 0:00:16]} Rd6 {[%emt 0:00:17]} 23. Rg1 {[%emt 0:00:07]} Rh6 {[%emt 0:00:34]} (23... g6 $142 24. a3 Ba5) 24. Rg4 {[%emt 0:00:22]} Kh8 {[%emt 0:00:03]} 25. Rc1 {[%emt 0:00:18]} Bd6 {[%emt 0:00:10]} 26. Kg1 {[%emt 0:00:47]} g6 {[%emt 0:01:55]} 27. Bd3 {[%emt 0:00:02]} Qe6 {[%emt 0:00:03]} 28. Re4 {[%emt 0:00:16]} (28. Kh1 $18 {and White stays clearly on top.}) 28... Qf5 $16 {[%emt 0:00:40]} 29. Qg2 {[%emt 0:02:14][%cal Oe4h4] Threatens to win with Rh4!} ({But not} 29. Qxf5 $6 gxf5 30. Re5 Bxe5 31. dxe5 Rg8+ 32. Kh1 Rxh3 $11) (29. Qg4 {with more complications.} Rxh3 30. Rf4 Qh5 31. Qxh5+ Rxh5 32. Rg4) 29... Qxh3 {[%emt 0:00:17]} 30. Qxh3 {[%emt 0:00:04]} Rxh3 {[%emt 0:00:00]} 31. f4 {[%emt 0:00:26]} Kg7 {[%emt 0:00:30]} 32. Bf1 {[%emt 0:00:10]} Rhh8 {[%emt 0:00:30]} 33. d5 {[%emt 0:00:11]} (33. Rc3 $16) 33... g5 {[%emt 0:00:04]} 34. Kg2 {[%emt 0:00:46]} gxf4 {[%emt 0:00:01]} 35. exf4 {[%emt 0:00:01]} Kf6 {[%emt 0:00:02]} 36. h3 {[%emt 0:00:04]} Rfg8+ {[%emt 0:00:08]} 37. Kf3 {[%emt 0:00:01]} Rg1 {[%emt 0:00:02][%cal Oh8h3]} 38. f5 {[%emt 0:00:34] [#]} ({White should try} 38. Rec4 $14) 38... Rxh3+ $1 {[%emt 0:00:15]} 39. Bxh3 {[%emt 0:00:01] The position is equal.} Rxc1 {[%emt 0:00:00]} 40. Re2 {[%emt 0:00:08]} Rc4 {[%emt 0:00:21][%mdl 1024] Black has compensation.} 41. b3 {[%emt 0:00:13] Black escapes into a draw.  Weighted Error Value: White=0.19 (very precise) /Black=0.15 (very precise)} 1/2-1/2

[Event "MCCT Chessable Masters 2022"]
[Site "Online"]
[Date "2022.05.16"]
[Round "7.5"]
[White "Hansen, Eric"]
[Black "Giri, Anish"]
[Result "0-1"]
[ECO "B50"]
[WhiteElo "2606"]
[BlackElo "2761"]
[Annotator "TA"]
[PlyCount "66"]
[EventDate "2022.05.19"]
[EventType "tourn"]
[EventCountry "NET"]
[SourceTitle "playchess.com"]
[Source "ChessBase"]
[SourceQuality "1"]
[TimeControl "900+10"]

{[%evp 11,66,0,-8,-7,-8,-19,-1,-20,-11,-4,22,-8,-9,-43,-50,-70,-54,-53,-54,-97,-101,-86,-40,-41,-17,-32,-15,-29,-11,-81,-80,-60,-58,-81,-29,-15,-17,-110,-92,-119,-83,-144,-152,-144,-135,-258,-258,-502,-484,-556,-509,-551,-486,-450,-476,-950,-937]} 1. e4 {[%emt 0:00:00]} c5 {[%emt 0:00:00]} 2. Nf3 {[%emt 0:00:02]} d6 {[%emt 0:00:01]} 3. c3 {[%emt 0:00:10]} Nf6 {[%emt 0:00:03]} 4. Be2 {[%emt 0:00:00]} g6 {[%emt 0:00:01]} 5. O-O {[%emt 0:00:02]} Bg7 {[%emt 0:00:01]} 6. Bb5+ {[%emt 0:00:01]} Nc6 {[%emt 0:00:01]} 7. d4 {[%emt 0:00:02] B50: Sicilian: 2...d6, Miscellaneous.} O-O {[%emt 0:00:01]} 8. d5 {[%emt 0:00:13]} a6 {[%emt 0:00:01]} 9. Be2 {[%emt 0:00:16] [#] The position is equal.} Nb8 $146 {[%emt 0:02:14]} ({Predecessor:} 9... Na5 10. b4 cxb4 11. cxb4 Nxe4 12. Nd4 Qb6 13. Nc2 Bxa1 14. Be3 Qc7 15. Nxa1 Nc4 {½-½ (25) Nilsson,L (2246)-Juras,Z (2306) ICCF email 2017}) 10. Nbd2 {[%emt 0:00:24]} e6 {[%emt 0:00:07]} 11. c4 {[%emt 0:00:40]} exd5 {[%emt 0:00:17]} 12. cxd5 {[%emt 0:00:03]} Re8 {[%emt 0:00:05]} 13. Bd3 {[%emt 0:00:02]} Bg4 {[%emt 0:00:42]} 14. a4 {[%emt 0:01:33]} Nbd7 {[%emt 0:00:14]} 15. Re1 {[%emt 0:01:18]} Ne5 {[%emt 0:00:06]} 16. Bf1 {[%emt 0:00:13]} Nxf3+ {[%emt 0:02:13]} (16... Qe7 $17) 17. gxf3 $15 {[%emt 0:00:04]} Bh5 {[%emt 0:00:28]} 18. Qb3 {[%emt 0:01:16]} Nd7 {[%emt 0:00:45]} 19. f4 {[%emt 0:00:36]} Bd4 {[%emt 0:02:01]} 20. Nf3 {[%emt 0:00:49]} (20. Nc4 $11) 20... Bxf3 $17 {[%emt 0:02:44]} 21. Qxf3 {[%emt 0:00:02]} Qh4 {[%emt 0:00:15] Hoping for ...Nf6.} 22. Be3 {[%emt 0:01:52]} Nf6 $40 {[%emt 0:02:17][%mdl 128] Black attacks. Black is more active.} (22... Bxb2 $17 23. Rab1 Bc3) 23. Bxd4 $11 {[%emt 0:00:11]} cxd4 {[%emt 0:00:00]} 24. Rad1 {[%emt 0:05:45] [#]} (24. Qg3 $11 {keeps the balance.} Qxg3+ 25. fxg3) 24... Nxe4 $1 $17 {[%emt 0:00:12][%cal Og8g7][%mdl 512]} 25. Rxd4 {[%emt 0:00:24]} (25. Rxe4 $2 Rxe4 26. Qg3 Rxf4 27. Qxh4 Rxh4 $19) 25... Nc5 {[%emt 0:00:38]} 26. Rxe8+ {[%emt 0:01:54]} ({White should try} 26. Rc1) 26... Rxe8 {[%emt 0:00:00]} 27. a5 {[%emt 0:00:01]} Qf6 {[%emt 0:00:47]} ({Not} 27... Re1 28. b4 Qf6 29. Rd1 Rxd1 30. Qxd1 $17) 28. Rb4 {[%emt 0:00:11]} (28. Qc3 $17) 28... Re1 $19 {[%emt 0:00:13] Threatens to win with ...Qf5.} 29. Kg2 $2 {[%emt 0:00:15] [#]} (29. Qh3 {is a better defense.}) 29... Qf5 $1 {[%emt 0:00:48] And now ...Qb1 would win. Black is clearly winning.} 30. h3 {[%emt 0:01:33]} Qb1 {[%emt 0:00:26]} 31. Be2 {[%emt 0:00:02]} Qc2 {[%emt 0:00:04]} 32. Bf1 {[%emt 0:00:03]} Qc1 {[%emt 0:00:28]} 33. Be2 {[%emt 0:00:24]} (33. Rc4 $142 Qb1 34. Rxc5 dxc5 35. Qd3) 33... Qd2 {[%emt 0:00:05][%csl LRb4,LRe2] Weighted Error Value: White=0.54/Black=0.09 (flawless)} 0-1

[Event "MCCT Chessable Masters 2022"]
[Site "Online"]
[Date "2022.05.16"]
[Round "7.6"]
[White "Mamedyarov, Shakhriyar"]
[Black "Wei, Yi"]
[Result "1/2-1/2"]
[ECO "A50"]
[WhiteElo "2770"]
[BlackElo "2727"]
[Annotator "TA"]
[PlyCount "126"]
[EventDate "2022.05.19"]
[EventType "tourn"]
[EventCountry "NET"]
[SourceTitle "playchess.com"]
[Source "ChessBase"]
[SourceQuality "1"]
[TimeControl "900+10"]

{[%evp 9,126,0,10,-27,-40,-35,-32,-37,-39,-37,-39,-58,-44,-81,-68,-102,-95,-96,-89,-128,-125,-135,-137,-183,-75,-70,-69,-117,-108,-181,-66,-60,-27,-31,0,0,0,0,0,0,0,0,0,0,8,8,8,0,0,0,0,0,0,0,8,0,0,0,0,0,0,0,0,0,0,0,0,0,0,0,0,0,1,0,0,0,0,0,0,0,0,0,0,0,0,0,0,-8,-8,-8,0,-8,0,-8,0,-8,-7,-7,-7,-7,-7,-7,-7,-7,0,0,0,-7,-7,-7,-7,-7,0,-7,0,0,0,0,0]} 1. d4 {[%emt 0:00:00]} Nf6 {[%emt 0:00:00]} 2. c4 {[%emt 0:00:02]} e6 {[%emt 0:00:02]} 3. g4 {[%emt 0:00:04]} Bb4+ {[%emt 0:00:33] [#]} 4. Bd2 $146 {[%emt 0:00:03]} ({Predecessor:} 4. Nd2 Nxg4 5. e4 Nf6 6. e5 Ne4 7. Bd3 Nxd2 8. Bxd2 Bxd2+ 9. Qxd2 h6 10. O-O-O d5 {½-½ (67) Janaszak,D (2333)-Vifleemskaia,S (1926) Chess.com INT 2022}) 4... Qe7 {[%emt 0:01:30]} 5. e3 {[%emt 0:00:14]} d5 {[%emt 0:02:07]} 6. Nc3 {[%emt 0:00:51] A50: Queen's Fianchetto Defence (1 d4 Nf6 2 c4 b6).} O-O {[%emt 0:00:56]} 7. g5 {[%emt 0:03:31]} Bxc3 {[%emt 0:00:09]} 8. Bxc3 {[%emt 0:00:01] Black is slightly better.} Ne4 {[%emt 0:00:05]} 9. h4 {[%emt 0:00:00]} c5 {[%emt 0:00:58]} 10. Nf3 {[%emt 0:00:04]} Nc6 {[%emt 0:00:30]} 11. Qc2 {[%emt 0:00:29]} cxd4 {[%emt 0:00:46]} 12. exd4 {[%emt 0:00:09]} e5 {[%emt 0:00:56]} 13. dxe5 {[%emt 0:01:15]} ({Don't blunder} 13. cxd5 $2 exd4 14. O-O-O dxc3 $19) 13... Bg4 {[%emt 0:00:47]} 14. Be2 {[%emt 0:00:11]} Nxc3 {[%emt 0:00:29]} 15. Qxc3 {[%emt 0:00:01]} d4 {[%emt 0:00:36]} 16. Qa3 {[%emt 0:00:02] [#]} (16. Nxd4 $17 {was called for.} Qxe5 17. Qe3 Qa5+ 18. Qc3) 16... Qxa3 {[%emt 0:01:27]} (16... Qe6 $1 $19 {and Black stays clearly on top.} 17. O-O-O Rad8) 17. bxa3 $17 {[%emt 0:00:01]} d3 {[%emt 0:03:53]} 18. Bd1 {[%emt 0:00:04] [#]} (18. Rg1 $15) 18... Rac8 $1 {[%emt 0:00:02]} 19. Kd2 {[%emt 0:02:38]} (19. Nd2 $17 {might work better.} Nxe5 20. Bxg4 Nxg4 21. O-O) 19... Na5 {[%emt 0:00:09]} ({Black should play} 19... Rfd8 $19 {Strongly threatening ...Na5.} 20. Rc1 Bxf3 21. Bxf3 Nxe5) 20. Kxd3 $15 {[%emt 0:01:02][%cal Bd2d3,Bd3e4,Be4f4,Bf4g3][%mdl 32]} Nxc4 {[%emt 0:00:22]} (20... Rxc4 $5 {[%cal Rf8d8]} 21. Ke3 Nc6 $15) 21. Ke4 $1 {[%emt 0:00:18]} Rfe8 {[%emt 0:01:49]} 22. Kf4 {[%emt 0:00:54] The position is equal.} Bxf3 {[%emt 0:00:12]} 23. Bxf3 {[%emt 0:00:00]} Nxe5 {[%emt 0:00:05] aiming for ...Rc4+.} 24. Bxb7 {[%emt 0:00:01]} Rc3 {[%emt 0:00:12]} 25. f3 {[%emt 0:00:53]} Rxa3 {[%emt 0:00:06]} 26. Kg3 {[%emt 0:00:05]} Nd3 {[%emt 0:00:21]} 27. Rhb1 {[%emt 0:01:23]} Nc5 {[%emt 0:00:16] Prevents Rb3.} 28. Bc6 {[%emt 0:01:29]} Rc8 {[%emt 0:00:03]} 29. Rb5 {[%emt 0:00:07]} Rc3 {[%emt 0:00:19]} 30. Bd5 {[%emt 0:00:15]} Rd3 {[%emt 0:00:15]} 31. Bc6 {[%emt 0:00:37]} Rd6 {[%emt 0:00:04]} 32. Bb7 {[%emt 0:00:38]} Nxb7 {[%emt 0:00:01]} 33. Rxb7 $11 {[%emt 0:00:00][%mdl 4096] Endgame KRR-KRR} Ra6 {[%emt 0:00:29]} 34. Rc1 {[%emt 0:00:12][%cal Rc1c8]} Rf8 {[%emt 0:00:01]} 35. Rc2 {[%emt 0:00:10]} h6 {[%emt 0:00:01]} 36. Kg4 {[%emt 0:00:31]} hxg5 {[%emt 0:00:03]} 37. hxg5 {[%emt 0:00:00]} Kh7 {[%emt 0:00:15]} 38. f4 {[%emt 0:00:04]} Ra4 {[%emt 0:00:15]} 39. Rbc7 {[%emt 0:00:38]} Kg6 {[%emt 0:00:13]} 40. R7c4 {[%emt 0:00:07]} f5+ {[%emt 0:00:11]} 41. Kf3 {[%emt 0:00:11]} Ra3+ {[%emt 0:00:07]} 42. R4c3 {[%emt 0:00:01]} Rxc3+ {[%emt 0:00:22]} 43. Rxc3 {[%emt 0:00:00] KR-KR} Rd8 {[%emt 0:00:07]} 44. Rc6+ {[%emt 0:00:06]} Kh5 {[%emt 0:00:02] Hoping for ...Rd3+.} 45. Rc7 {[%emt 0:00:03][%csl LRa7,LRg7]} Rd3+ {[%emt 0:00:04]} 46. Ke2 {[%emt 0:00:02]} Ra3 {[%emt 0:00:03] ...g6 is the strong threat.} 47. Rxg7 {[%emt 0:00:01]} Kg4 {[%emt 0:00:03]} 48. g6 {[%emt 0:00:01]} Rxa2+ {[%emt 0:00:24]} 49. Ke3 {[%emt 0:00:30]} Ra3+ {[%emt 0:00:01]} 50. Kf2 {[%emt 0:00:02]} Ra2+ {[%emt 0:00:05]} 51. Ke3 {[%emt 0:00:01] And now Rh7 would win.} Ra3+ {[%emt 0:00:01]} 52. Kf2 {[%emt 0:00:01]} Kxf4 {[%emt 0:00:33] Black wants to play ...Ra2+.} 53. Rf7 {[%emt 0:00:01]} Rf3+ {[%emt 0:00:28]} 54. Ke2 {[%emt 0:00:04]} Rg3 {[%emt 0:00:09]} 55. g7 {[%emt 0:00:08]} a5 {[%emt 0:00:06]} 56. Kf2 {[%emt 0:00:03][%cal Of7f5] Intending Rxf5+! and mate.} Rf3+ {[%emt 0:00:09]} 57. Kg2 {[%emt 0:00:06]} Rg3+ {[%emt 0:00:02]} 58. Kf2 {[%emt 0:00:00][%cal Of7f5] Threatening mate with Rxf5+!} Rg6 {[%emt 0:00:04]} 59. Re7 {[%emt 0:00:19]} Kg5 {[%emt 0:00:16]} 60. Ra7 {[%emt 0:00:05]} Kh6 {[%emt 0:00:01]} 61. Rxa5 {[%emt 0:00:03]} Kxg7 {[%emt 0:00:01]} 62. Rxf5 {[%emt 0:00:01]} Rf6 {[%emt 0:00:01]} 63. Rxf6 {[%emt 0:00:01]} Kxf6 {[%emt 0:00:00] Weighted Error Value: White=0.07 (flawless) /Black=0.06 (flawless)} 1/2-1/2

[Event "MCCT Chessable Masters 2022"]
[Site "Online"]
[Date "2022.05.16"]
[Round "7.7"]
[White "Van Foreest, Jorden"]
[Black "Vidit, Santosh Gujrathi"]
[Result "1-0"]
[ECO "D38"]
[WhiteElo "2715"]
[BlackElo "2723"]
[Annotator "TA"]
[PlyCount "99"]
[EventDate "2022.05.19"]
[EventType "tourn"]
[EventCountry "NET"]
[SourceTitle "playchess.com"]
[Source "ChessBase"]
[SourceQuality "1"]
[TimeControl "900+10"]

{[%evp 12,99,-12,-8,0,-5,-6,-2,-4,-7,0,-14,34,38,27,23,36,27,29,34,82,42,45,27,33,33,37,25,31,21,40,0,11,25,12,19,17,26,106,109,131,128,136,120,108,122,233,227,225,206,288,283,264,180,180,180,464,447,6075,6075,4132,616,6091,6091,5397,5381,1505,1115,1477,1481,29984,29985,29985,29986,29985,29984,29984,29985,29988,29989,29989,29990,29990,29990,29991,29992,29996,29997,29997,29998]} 1. d4 {[%emt 0:00:00]} Nf6 {[%emt 0:00:00]} 2. c4 {[%emt 0:00:05]} e6 {[%emt 0:00:02]} 3. Nf3 {[%emt 0:00:03]} d5 {[%emt 0:00:08]} 4. Nc3 {[%emt 0:00:03]} Bb4 {[%emt 0:00:14]} 5. Qa4+ {[%emt 0:00:05]} Nc6 {[%emt 0:00:01]} 6. a3 {[%emt 0:00:01]} Bxc3+ {[%emt 0:00:06]} 7. bxc3 {[%emt 0:00:01]} Ne4 {[%emt 0:00:04] D38: Queen's Gambit Declined: Ragozin Defence (4 Nf3 Bb4).} 8. e3 {[%emt 0:00:14]} Nxc3 {[%emt 0:01:16]} 9. Qc2 {[%emt 0:00:03]} Ne4 {[%emt 0:00:01] The position is equal.} 10. Bd3 {[%emt 0:00:02]} O-O {[%emt 0:00:44]} 11. O-O {[%emt 0:00:11] [#]} Bd7 $146 {[%emt 0:01:29]} (11... f5 $11) ({Predecessor:} 11... Na5 12. Ne5 Nf6 13. cxd5 exd5 14. Bd2 c6 15. Rab1 Be6 16. a4 Rb8 17. Rb2 Nc4 18. Nxc4 dxc4 19. Bxc4 Bxc4 20. Qxc4 {1-0 (42) Giri,A (2776)-Van Foreest,J (2698) chess24.com INT 2021}) 12. Bxe4 $14 {[%emt 0:01:04]} dxe4 {[%emt 0:00:01]} 13. Qxe4 {[%emt 0:00:00]} Na5 {[%emt 0:00:10]} 14. Qc2 {[%emt 0:00:10]} c5 {[%emt 0:00:21]} 15. dxc5 {[%emt 0:00:31]} Qc7 {[%emt 0:00:25]} (15... f6 $14) 16. Bd2 {[%emt 0:01:10]} h6 {[%emt 0:01:21] Prevents Ng5.} 17. Rfd1 {[%emt 0:00:37] Black must now prevent Bxa5.} Rfd8 {[%emt 0:00:30]} 18. Bb4 {[%emt 0:01:09]} b6 {[%emt 0:01:23]} 19. Bxa5 {[%emt 0:01:53]} bxa5 {[%emt 0:00:03]} 20. Rd4 {[%emt 0:00:04]} Be8 {[%emt 0:01:18]} 21. Rad1 {[%emt 0:00:15]} Rdc8 {[%emt 0:00:10]} 22. Qc3 {[%emt 0:00:03] next Rg4 is good for White.} Qxc5 {[%emt 0:01:01]} 23. Rg4 {[%emt 0:00:02][%csl Gg4][%cal Rc3g7]} g6 {[%emt 0:00:12]} 24. h4 {[%emt 0:00:26][%cal Oh4h5] With the idea h5!} Rd8 {[%emt 0:01:57]} (24... Qe7 $11) 25. Rgd4 $16 {[%emt 0:00:23] White is more active. White leaves nothing to chance now.} Rxd4 {[%emt 0:00:20]} 26. exd4 {[%emt 0:00:29]} ({Much worse is} 26. Nxd4 $6 Rc8 $11) 26... Qf5 {[%emt 0:00:01]} 27. d5 {[%emt 0:01:10] aiming for d6.} exd5 {[%emt 0:00:02]} 28. cxd5 {[%emt 0:00:00][%cal Bc4d5,Bd5d6][%mdl 32]} a4 {[%emt 0:00:39]} (28... Ba4 $16 29. Rd4 Bb5) 29. d6 $1 $18 {[%emt 0:00:45]} Bd7 {[%emt 0:00:20]} 30. Ne5 {[%emt 0:01:29]} Rc8 {[%emt 0:01:20]} 31. Qd4 {[%emt 0:00:12]} Re8 {[%emt 0:00:03]} 32. Nxd7 {[%emt 0:00:45]} Qxd7 {[%emt 0:00:01][%mdl 4096] Endgame KQR-KQR} 33. h5 {[%emt 0:00:00] Strongly threatening hxg6.} gxh5 {[%emt 0:01:12] [#]} (33... Re6 {is a better defense.} 34. hxg6 Rxg6) 34. Rd3 $1 {[%emt 0:01:14] And now Rg3+ would win.} Re6 {[%emt 0:00:20] [#]} (34... Re1+ 35. Kh2 Re6 36. Rg3+ Rg6 37. Qf6 Rxg3 38. fxg3) (34... h4 $142 35. Qxh4 Kh7) 35. Rg3+ $1 {[%emt 0:00:49]} Rg6 {[%emt 0:00:01]} 36. Qf6 {[%emt 0:01:01] White wants to mate with Qe7.} Rxg3 {[%emt 0:01:34]} 37. fxg3 {[%emt 0:00:00] White threatens Qe7 and mate. KQ-KQ} Qc8 {[%emt 0:00:54]} 38. Kh2 {[%emt 0:00:32]} h4 {[%emt 0:00:12]} 39. gxh4 {[%emt 0:00:05]} Qc1 {[%emt 0:00:53]} 40. Qd4 {[%emt 0:00:12][%csl LRa4,LRa7] d7 would kill now.} a5 {[%emt 0:00:48]} 41. d7 {[%emt 0:00:14] White mates.} Qc7+ {[%emt 0:00:02]} 42. Kh3 {[%emt 0:00:00]} Qd8 {[%emt 0:00:03]} 43. Kg4 {[%emt 0:00:10]} Kh7 {[%emt 0:00:26]} 44. Kf5 {[%emt 0:00:15]} Kg8 {[%emt 0:00:05]} 45. g4 {[%emt 0:00:33]} Kh7 {[%emt 0:00:06]} 46. g5 {[%emt 0:00:13]} hxg5 {[%emt 0:00:11]} 47. hxg5 {[%emt 0:00:01][%cal Bh4g5,Bg5g6][%mdl 32]} Kg8 {[%emt 0:00:14]} 48. g6 {[%emt 0:00:01]} f6 {[%emt 0:00:12]} 49. Qd5+ {[%emt 0:00:03]} Kh8 {[%emt 0:00:08]} 50. Qh1+ {[%emt 0:00:01] Weighted Error Value: White=0.06 (flawless) /Black=0.42} 1-0